Cogmind - Beta 15 @@@ ROGUE MODE // 2025.05.22 @ 03:01:57 Player: H.1 Result: Destroyed by Y-45 Defender with Heavy Assault Rifle Performance ------------- Evolutions (2) 1000 Regions Visited (5) 1000 Robots Destroyed (12) 60 Value Destroyed (261) 261 Prototype IDs (0) 0 Alien Tech Used (0) 0 Bonus (171) 171 TOTAL SCORE: 2492 Bonus ------- Follower Combat Kills 183 Friendly Fire -12 Cogmind --------- Core Integrity 0/550 Matter 294/300 Energy 150/150 System Corruption 0% Temperature Cool (9) Movement Core (200) Ox3 Location -8/Materials Parts ------- > --- POWER (1) -------- Light Angular Momentum Engine > --- PROPULSION (3) --- (None) > --- UTILITY (4) ------ Structural Scanner > --- WEAPON (3) ------- (None) > --- INVENTORY (5) ---- Improved Ion Engine Peak State ------------ > --- POWER ------------ Ion Engine > --- PROPULSION ------- Flight Unit Flight Unit Flight Unit > --- UTILITY ---------- Signal Interpreter Hacking Suite > --- WEAPON ----------- Beam Rifle Light Assault Rifle > --- INVENTORY -------- Improved Ion Engine Hover Unit Structural Scanner Seismic Detector Medium Laser [Rating: 11] Favorites ----------- Power Ion Engine Engine Ion Engine Propulsion Flight Unit Leg Aluminum Leg Wheel Wheel Hover Unit Hover Unit Flight Unit Flight Unit Utility Signal Interpreter Device Seismic Detector Storage Small Storage Unit Processor Signal Interpreter Hackware Hacking Suite Protection Utility Shielding Weapon Medium Laser Energy Gun Medium Laser Ballistic Gun Light Assault Rifle Special Melee Weapon Datajack Build | -11 -10 -10 -9 -9 -8 ------- Run | Yrd Mat Min Mat Min Mat Slots Evolved 4 | . . . 2 . 2 Power . | . . . . . . Propulsion 1 | . . . 1 . . Utility 2 | . . . 1 . 1 Weapon 1 | . . . . . 1 Parts Attached 26 | 7 6 4 3 1 5 Power 4 | 1 1 1 . . 1 Engine 4 | 1 1 1 . . 1 Core . | . . . . . . Reactor . | . . . . . . Propulsion 7 | 3 2 . 1 1 . Treads . | . . . . . . Leg 2 | 2 . . . . . Wheel 1 | 1 . . . . . Hover 1 | . . . . 1 . Flight 3 | . 2 . 1 . . Utility 7 | 1 2 2 1 . 1 Device 2 | . . 1 . . 1 Storage 2 | 1 1 . . . . Processor 1 | . 1 . . . . Hackware 1 | . . . 1 . . Protection 1 | . . 1 . . . Artifact . | . . . . . . Weapon 8 | 2 1 1 1 . 3 Energy Gun 3 | 2 . . 1 . . Energy Cannon . | . . . . . . Ballistic Gun 4 | . 1 1 . . 2 Ballistic Cannon . | . . . . . . Launcher . | . . . . . . Special Weapon . | . . . . . . Impact Weapon . | . . . . . . Slashing Weapon . | . . . . . . Piercing Weapon . | . . . . . . Special Melee Weapon 1 | . . . . . 1 Unidentified Prototypes . | . . . . . . Parts Lost 12 | . . . 1 4 7 Power 1 | . . . . . 1 Propulsion 4 | . . . 1 3 . Utility 1 | . . . . . 1 Weapon 6 | . . . . 1 5 Highest Loss Streak 5 | . . . 1 3 5 To Critical Strikes . | . . . . . . Average Backups 3 | 3 6 4 4 2 1 Power . | . 1 1 1 1 1 Propulsion . | 1 1 . . . . Utility 1 | . 2 1 1 1 . Weapon . | . 1 1 . . . Tool/Special . | . . . . . . Unused Backups 2 | . 2 . . . . Power . | . . . . . . Propulsion 1 | . 1 . . . . Utility . | . . . . . . Weapon 1 | . 1 . . . . Tool/Special . | . . . . . . Average Slot Usage (%) 67 | . 87 85 72 73 34 Engine 11 | . 14 14 11 11 7 Leg 5 | . 26 . . . . Flight 10 | . 1 28 22 6 . Device 3 | . . . . 6 7 Storage 2 | . 13 . . . . Processor 7 | . 3 14 11 11 2 Hackware 3 | . . . 5 11 2 Energy Gun 13 | . 24 14 11 20 4 Ballistic Gun 8 | . 3 14 11 1 9 Peak Build Rating 11 | 6 7 7 11 11 9 Average Rating 6 | 4 6 6 7 9 5 On Entrance 6 | . 6 6 6 9 9 Naked Turns 22 | . . . . . 22 Heaviest Build 12 | 11 11 8 9 11 12 Greatest Support 20 | 20 20 8 12 6 3 Greatest Overweight (x) 3 | . . . . 3 3 Average Overweight (x) . | . . . . 2 1 Largest Inventory Capacity 20 | 8 20 5 5 5 5 Average Capacity 5 | 6 7 5 5 5 5 Most Carried 8 | 5 8 5 5 5 4 Average Carried 3 | 3 6 4 4 2 1 Final Capacity 8 | 8 5 5 5 5 5 Final Carried 5 | 4 5 3 5 2 1 Class Distribution -------------------- 95% | Mutant 4% | Scavenger-Mutant Dominant Class ---------------- Mutant | -10/Materials Mutant | -10/Mines Mutant | -9/Materials Mutant | -9/Mines Mutant | -8/Materials Resources | -11 -10 -10 -9 -9 -8 ----------- Run | Yrd Mat Min Mat Min Mat Matter Collected 520 | 192 132 84 45 19 48 Remotely . | . . . . . . Salvage Created 306 | . 85 . 84 78 59 Parts 12 | . 2 . 4 3 3 Haulers Intercepted . | . . . . . . Recyclers Shooed 1 | . . . . 1 . Parts Field Recycled . | . . . . . . Retrieved Matter . | . . . . . . Parts Self-Destructed . | . . . . . . Prevented . | . . . . . . Kills | -11 -10 -10 -9 -9 -8 ------- Run | Yrd Mat Min Mat Min Mat Combat Hostiles Destroyed 10 | . 2 . 2 3 3 Melee 1 | . . . . . 1 Guns 9 | . 2 . 2 3 2 Classes Destroyed 4 | . 1 . 3 . . Operator 1 | . . . 1 . . Watcher 1 | . . . 1 . . Swarmer 6 | . . . 1 2 3 Grunt 4 | . 2 . 1 1 . Best Kill Streak 3 | . 2 . 3 2 3 Combat Bots Only 3 | . 2 . 1 2 3 Max Kills in Single Turn 1 | . 1 . 1 1 1 Gunslinging . | . . . . . . Exploded . | . . . . . . Melee 1 | . . . . . 1 Uniques/NPCs Destroyed . | . . . . . . Combat | -11 -10 -10 -9 -9 -8 -------- Run | Yrd Mat Min Mat Min Mat Hostile Shots Fired 202 | . 12 . 39 26 125 Missed 64 | . 4 . 19 3 38 Hits 138 | . 8 . 20 23 87 Projectile 138 | . 8 . 20 23 87 Critical Strikes 1 | . . . . . 1 Damage Taken 1428 | . 109 . 194 197 928 Core 662 | . . . 36 64 562 Absorbed by Shields . | . . . . . . Core Remaining (%) 91 | 100 . 100 . 75 . Volleys Fired 56 | 1 7 1 16 11 20 Largest 2 | 1 2 2 2 2 2 Hottest 106 | 40 70 70 76 106 106 Shots Fired 101 | 1 14 2 32 22 30 Gun 101 | 1 14 2 32 22 30 Cannon . | . . . . . . Launcher . | . . . . . . Special . | . . . . . . Kinetic 52 | . 7 1 16 3 25 Thermal 49 | 1 7 1 16 19 5 Explosive . | . . . . . . Electromagnetic . | . . . . . . Robot Hit Streak 12 | 1 5 7 8 3 12 Robot Miss Streak 7 | . 1 . 5 7 2 Penetration Max . | . . . . . . Secondary Targets 3 | . 1 . 2 . . Max Gunslinging Chain 1 | . 1 . 1 . . Shots Hit Robots 62 | 1 11 2 14 8 26 Core Hits 24 | . 4 1 6 4 9 Critical Kills . | . . . . . . Critical Parts Destroyed . | . . . . . . Critical Strikes 3 | . 1 . 1 1 . Burn 3 | . 1 . 1 1 . Melee Attacks 3 | . . . . . 3 Impact . | . . . . . . Slashing . | . . . . . . Piercing . | . . . . . . Sneak Attacks . | . . . . . . Combat Hostiles . | . . . . . . Follow-up Attacks . | . . . . . . Damage Inflicted 651 | 12 123 22 148 108 238 Guns 618 | 12 123 22 148 108 205 Cannons . | . . . . . . Explosions . | . . . . . . Melee . | . . . . . . Ramming 33 | . . . . . 33 Kinetic 264 | . 33 9 46 . 176 Thermal 354 | 12 90 13 102 108 29 Explosive . | . . . . . . Electromagnetic . | . . . . . . Impact . | . . . . . . Slashing . | . . . . . . Piercing . | . . . . . . Highest Corruption . | . . . . . . Average Corruption . | . . . . . . Corruption Purged . | . . . . . . Corruption Blocked . | . . . . . . Overload Shots . | . . . . . . Overflow Damage . | . . . . . . Projectiles . | . . . . . . Explosions . | . . . . . . Melee . | . . . . . . Knockbacks . | . . . . . . Impact . | . . . . . . Kinetic . | . . . . . . Secondary . | . . . . . . Self-Inflicted Damage 14 | . . . . . 14 Shots . | . . . . . . Rammed 11 | . . . . . 11 Targets Rammed 11 | . . . . . 11 Kicked . | . . . . . . Crushed . | . . . . . . Highest Temperature 164 | . 164 38 56 140 27 Average Temperature 39 | . 81 20 24 47 6 Received Heat Transfer 306 | . 63 . 51 30 162 Siege Activations . | . . . . . . Martial Activations . | . . . . . . Shielding Activations . | . . . . . . Robots Disrupted . | . . . . . . Combat Hostiles . | . . . . . . Robots Corrupted . | . . . . . . Combat Hostiles . | . . . . . . Parts Fried . | . . . . . . Impact Corruptions . | . . . . . . Robots Melted . | . . . . . . Combat Hostiles . | . . . . . . Parts Melted 4 | . 1 . 2 1 . Heat Transferred 1209 | 25 333 37 370 370 74 Parts Sabotaged . | . . . . . . Parts Stolen . | . . . . . . Parts Stripped . | . . . . . . Power Chain Reactions . | . . . . . . Alert | -11 -10 -10 -9 -9 -8 ------- Run | Yrd Mat Min Mat Min Mat Maximum Alert Level 1 | . . . 1 . . Low Security (%) 97 | 100 100 100 84 100 100 Level 1 2 | . . . 15 . . Level 2 . | . . . . . . Level 3 . | . . . . . . Level 4 . | . . . . . . Level 5 . | . . . . . . High Security . | . . . . . . Max Security . | . . . . . . Peak Influence 224 | . 50 15 224 129 75 Initial 75 | . . 15 . 75 38 Average 32 | . 8 2 68 97 29 Influence Increases 582 | . 64 . 304 124 90 Destroy 0b10 Robot/C 340 | . 40 . 140 100 60 Destroy 0b10 Robot/NC 25 | . . . 20 . 5 Destroy Leader 82 | . 10 . 42 20 10 Allied During Kill 17 | . . . 13 4 . Successful Hack 32 | . 14 . 18 . . Disable Machine 30 | . . . 30 . . Destroy Structure 26 | . . . 26 . . Partial Spotted 15 | . . . 15 . . Lose Combat Pursuer 15 | . . . . . 15 Influence Decreases 582 | . 24 40 110 219 189 Entered New Map 205 | . . 25 . 119 61 Time Decay 254 | . 24 15 60 60 95 Lost Part 70 | . . . 10 40 20 Lost Ally 53 | . . . 40 . 13 Squads Dispatched 5 | . 1 . 3 . 1 Investigation 3 | . 1 . 2 . . Extermination . | . . . . . . Reinforcement 2 | . . . 1 . 1 Assault . | . . . . . . Garrison . | . . . . . . Intercept . | . . . . . . Searches Triggered . | . . . . . . Construction Impeded 1 | . . . . . 1 Haulers Reinforced . | . . . . . . Active Scanning Responses . | . . . . . . Cargo Convoy Interrupts . | . . . . . . Stealth | -11 -10 -10 -9 -9 -8 --------- Run | Yrd Mat Min Mat Min Mat Distress Signals 3 | . . . 1 . 2 Communications Jammed . | . . . . . . Distress Signals . | . . . . . . Times Spotted 31 | . 2 2 13 6 8 Peak Tracking Total 7 | . 2 2 7 3 6 Tactical Retreats 1 | . . . . . 1 Traps | -11 -10 -10 -9 -9 -8 ------- Run | Yrd Mat Min Mat Min Mat Traps Triggered 1 | . . . . . 1 Indirectly . | . . . . . . Trap Hack Attempts 1 | . . . . . 1 Triggered . | . . . . . . Disarmed . | . . . . . . Reprogrammed . | . . . . . . Reused . | . . . . . . Traps Extracted . | . . . . . . Installed . | . . . . . . Triggered . | . . . . . . Machines | -11 -10 -10 -9 -9 -8 ---------- Run | Yrd Mat Min Mat Min Mat Machines Disabled 2 | . . . 2 . . Max in Single Turn . | . . . . . . Machines Repaired . | . . . . . . Machines Dismantled . | . . . . . . Machines Sabotaged . | . . . . . . Overloaded Fab Kills . | . . . . . . Hacking | -11 -10 -10 -9 -9 -8 --------- Run | Yrd Mat Min Mat Min Mat Machines Accessed 3 | . 1 . 2 . . Terminals 3 | . 1 . 2 . . Fabricators . | . . . . . . Repair Stations . | . . . . . . Recycling Units . | . . . . . . Scanalyzers . | . . . . . . Garrison Access . | . . . . . . Total Hacks 18 | . 2 . 16 . . Successful 12 | . 1 . 11 . . Failed 6 | . 1 . 5 . . Catastrophic . | . . . . . . Database Lockouts . | . . . . . . Manual . | . . . . . . Terminals 18 | . 2 . 16 . . Fabricators . | . . . . . . Repair Stations . | . . . . . . Recycling Units . | . . . . . . Scanalyzers . | . . . . . . Garrison Access . | . . . . . . Terminal Hacks 12 | . 1 . 11 . . Record 8 | . . . 8 . . Branch Access Points 1 | . . . 1 . . Recall Investigation 1 | . . . 1 . . Registered Prototypes 1 | . . . 1 . . Zone Layout 1 | . 1 . . . . Fabricator Hacks . | . . . . . . Repair Station Hacks . | . . . . . . Recycling Unit Hacks . | . . . . . . Scanalyzer . | . . . . . . Garrison Access Hacks . | . . . . . . Unauthorized Hacks . | . . . . . . Terminals . | . . . . . . Fabricators . | . . . . . . Repair Stations . | . . . . . . Recycling Units . | . . . . . . Scanalyzers . | . . . . . . Garrison Access . | . . . . . . Data Cores Recovered 2 | . . . 1 . 1 Used 1 | . . . 1 . . Hacking Detections 3 | . 1 . 2 . . Full Trace Events 2 | . . . 2 . . Feedback Events . | . . . . . . Feedback Blocked . | . . . . . . Robot Schematics Acquired . | . . . . . . Robots Built . | . . . . . . Authchips . | . . . . . . Time . | . . . . . . Total Robot Build Rating . | . . . . . . Part Schematics Acquired . | . . . . . . Parts Built . | . . . . . . Authchips . | . . . . . . Time . | . . . . . . Total Part Build Rating . | . . . . . . Parts Repaired . | . . . . . . Time . | . . . . . . Parts Recycled . | . . . . . . Recycled Matter . | . . . . . . Retrieved Matter . | . . . . . . Retrieved Components . | . . . . . . Parts Scanalyzed . | . . . . . . Part Schematics Acquired . | . . . . . . Parts Damaged . | . . . . . . Bothacking | -11 -10 -10 -9 -9 -8 ------------ Run | Yrd Mat Min Mat Min Mat Used RIF Installer . | . . . . . . Robots Hacked 1 | . . . . . 1 Non-combat . | . . . . . . Combat 1 | . . . . . 1 Robot Hacks Applied 1 | . . . . . 1 parse_system 1 | . . . . . 1 Relay Couplers Released . | . . . . . . Fabnet Peak Effective % . | . . . . . . Robots Rewired . | . . . . . . Allies Hacked . | . . . . . . Hacks Repelled . | . . . . . . Allies | -11 -10 -10 -9 -9 -8 -------- Run | Yrd Mat Min Mat Min Mat Total Allies 3 | . . 2 . 1 . Largest Group 2 | . . 2 2 1 1 Highest-Rated Group 49 | . . 49 49 31 31 Highest-Rated Ally 31 | . . 31 31 31 31 Total Orders . | . . . . . . Ally Attacks 33 | . . . 23 6 4 Total Damage 738 | . . . 569 105 64 Kills 10 | . . . 7 2 1 Allies Corrupted . | . . . . . . Allies Melted . | . . . . . . Intel | -11 -10 -10 -9 -9 -8 ------- Run | Yrd Mat Min Mat Min Mat Active Infowar (turns) 308 | . . 1 . 89 218 Structural 153 | . . . . . 153 Seismic 155 | . . 1 . 89 65 Robot Analysis Total . | . . . . . . Derelict Logs Recovered . | . . . . . . Drone Launches . | . . . . . . Drone Recoveries . | . . . . . . Exploration | -11 -10 -10 -9 -9 -8 ------------- Run | Yrd Mat Min Mat Min Mat Turns Passed 963 | 89 178 181 126 138 251 Spaces Moved 941 | 61 143 361 190 64 122 Core 158 | 2 . . . 34 122 Treads . | . . . . . . Legs 161 | 56 105 . . . . Wheels 3 | 3 . . . . . Hover 30 | . . . . 30 . Flight 589 | . 38 361 190 . . Fastest Speed 34 | 50 37 37 34 120 50 Average Speed 73 | 115 97 37 36 162 143 Slowest Speed 200 | 120 120 37 37 200 200 Overloaded Moves . | . . . . . . Propulsion Burnouts . | . . . . . . Robots Hopped 2 | . . . 2 . . Potential Cave-ins . | . . . . . . Cave-ins Triggered . | . . . . . . Exploration Rate (%) 22 | 5 22 55 21 16 18 Regions Visited 5 Branch Regions 2 Pre-discovered Areas 1 | . . . . 1 . Known Exits Taken 4 | . 1 1 1 1 . Unknown Exits Taken 1 | 1 . . . . . Scrap Searched 1 | . . 1 . . . Spaces Dug . | . . . . . . Terrain Destroyed . | . . . . . . Melee . | . . . . . . Projectile . | . . . . . . AOE . | . . . . . . Terrain Rammed . | . . . . . . Walls Destroyed . | . . . . . . Machines Disabled . | . . . . . . Actions | -11 -10 -10 -9 -9 -8 --------- Run | Yrd Mat Min Mat Min Mat Total 1111 | 79 167 408 213 77 167 Wait 31 | . . 31 . . . Move 932 | 60 142 360 185 63 122 Hop 2 | . . . 2 . . Pick Up 28 | 10 6 3 5 . 4 Fast Attach . | . . . . . . Attach 20 | 7 1 2 2 3 5 Detach 3 | 1 . 2 . . . Swap 13 | . 6 4 2 . 1 Drop 11 | . 5 5 1 . . Fire 56 | 1 7 1 16 11 20 Melee 3 | . . . . . 3 Ram 11 | . . . . . 11 Kick . | . . . . . . Crush . | . . . . . . Escape Stasis . | . . . . . . Rewire . | . . . . . . Trap 1 | . . . . . 1 Miscellaneous . | . . . . . . Route ------- -11/Scrapyard -10/Materials -10/Mines -9/Materials (discovered 4 exits: *Min x2 / Sto x2) -9/Mines -8/Materials History --------- Turn | Location | Event 12 | -11/Scrapyard | Discovered new exit (range 16) 90 | -11/Scrapyard | Entered Materials 91 | -10/Materials | Met a group of wandering Federalists 208 | -10/Materials | Discovered new exit (range 8) 229 | -10/Materials | Identified exit to Mines 268 | -10/Materials | Entered Mines 272 | -10/Mines | Joined a pair of Derelicts in attacking an 0b10 outpost 323 | -10/Mines | Build established: Mutant 342 | -10/Mines | Found a hidden stash of uninstalled traps 378 | -10/Mines | Discovered new exit (range 6) 380 | -10/Mines | Identified exit to Materials 449 | -10/Mines | Entered Materials 449 | -9/Materials | Accompanied by 2 allies 449 | -9/Materials | Evolved 2 slots: Propulsion x1, Utility x1 455 | -9/Materials | Led the pair of lost Derelicts to an unsafe place 478 | -9/Materials | Identified exit to Mines 478 | -9/Materials | Identified exit to Storage 575 | -9/Materials | Entered Mines 595 | -9/Mines | Escorted by a lone wolf Derelict 615 | -9/Mines | Learned location of Storage (-9) 617 | -9/Mines | Lost 3 parts (2n1w) 659 | -9/Mines | Discovered new exit (range 15) 707 | -9/Mines | Identified exit to Materials 713 | -9/Mines | Entered Materials 713 | -8/Materials | Accompanied by 1 ally 713 | -8/Materials | Evolved 2 slots: Utility x1, Weapon x1 805 | -8/Materials | Core integrity fell below 50% 815 | -8/Materials | Lost 5 parts (1p1u3w) 941 | -8/Materials | Core integrity fell below 20% 964 | -8/Materials | Destroyed by Y-45 Defender with Heavy Assault Rifle Last Messages --------------- U-05 Engineer works on Integration Channel. K-01 Serf collects debris. Triggered Blade Trap. Massive razor-sharp blades shoot up from within the floor. Hacking Suite severed. Signal Interpreter severed. K-01 Serf collects debris. Slammed into S-10 Pest. S-10 Pest destroyed. Acquired Lgt. Assault Rifle. S-10 Pest destroyed. Acquired 31 matter. Acquired Lgt. Assault Rifle. S-10 Pest destroyed. Acquired 17 matter. Slammed into W-25 Informer. Critical hit (Burn: +37). Lgt. Assault Rifle destroyed. Slammed into Y-45 Defender. Map ----- +----------------------------------------------------+ | ?????????????????????????????????????????????? | | ?????????????????????????????????????????????? | | ?????????????????????????????????????????????? | | ?????????????????????????????????????????????? | | ?????????????????????????????????????????????? | | ?????????????????????????????????????????????? | | ?????????????????????????????????????????????? | | ?????????????????????????????????????????????? | | ?????????????????????????????????????????????? | | ?????????????????????????????????????????????? | | ?????????????????????????????????????????????? | | ??????????????????? ?????????????????????????? | | ??????????????????= ?????????????????????????? | | ?????????????????? ?????????????????????????? | | ??????????????????" ?????????????????????????? | | ????????????????""" ????????????????????????? | | ######???????????"" ????????????????????????? | | ##?????? ????????????????????????? | | ##?????? ? # #???????????? | | ##??????+# ?############???????????? | | # ?????? + ?## ##???????????? | | # ???????## ### """ ##???????????? | | # ???????## ### """ ##???????????? | | # ???????## # """ ##???????????? | | " # ???????## %+% ##???????????? | | + ???????## # @Y """ ##???????????? | | # ???????## # """ ##???????????? | | +##### # ???????## # """ ##???????????? | | ???? # # ???????## # ##???????????? | | ???? # ##???????## ###########???????????? | | ???? # ########### ####???????????? | | ???? # ########### ##?????????????? | | ???? # ##?????????????? | | ???? # ############ ##### ##?????????????? | | ???? # ############+##### ##?????????????? | | ???? # ##???????? ????? ##?????????????? | | ???? # ##?????????????????? ##?????????????? | | ##??## ##?????????????????? ?????????????? | | #??## ##??????????????????????????????????? | | ##### ##??????????????????????????????????? | | ##### ##??????????????????????????????????? | | ##??????????????????????????????????? | | ###### ######## ???????????????????????? | | ###### ############+???????????????????????? | | ###### ???????????????????????? | | ###### ???????????????????????? | | %* % ???????????????????????? | | #########+###########T???????????????????????? | | ######## ###########???????????????????????? | | ?????????????????????????????????????????????? | +----------------------------------------------------+ Best States ------------- Heat Dissipation 31 Energy Generation 18 Energy Capacity 265 Matter Stores 300 Matter Capacity 300 Sight Range 16 Terrain Scan Density 10 Evasion (%) 62 Offensive Hacking 10 Item Schematics ----------------- None Robot Schematics ------------------ None Fabricated ------------ Nothing Repaired ---------- Nothing Alien Tech Used ----------------- None Achievements -------------- Dynamic Key Uninvited Guest Challenges ------------ None Game ------ Seed WeightDeuteriumClaws Manual? 0 Play Time 00:30:46 Cumulative 2.5 hours Start 2025.05.22 @ 02:31:20 End 2025.05.22 @ 03:01:57 Sessions 1 Manual Loads 0 Difficulty Rogue Special Mode None Game No. 2 Rogue 1 Adventurer 1 Explorer 0 Win Type - Total 0 Types 0/0/0/0/0/0/0/0/0/0 Lore% 2 Gallery% 5 Achievement% 8 Wizard Run 0 Options --------- Layout 1 ASCII 0 Keyboard 0 Movement Arrows Keybinds 0 Fullscreen 1 Font 24/Smallcaps Map View 50x35 Zoom Use 0% Tactical HUD 0 Map Filters NONE Filters NONE Steam 1 RUN: 85e7067c-9946-4eea-a597-9b50bab996fc